Cogmind - Beta 10.2 @@@ ROGUE MODE // 2021.02.22 @ 20:05:01 Player: Crophlin Result: Destroyed by Y-45 Defender with Beam Rifle Performance ------------- Evolutions (2) 1000 Regions Visited (3) 600 Robots Destroyed (64) 320 Value Destroyed (1745) 1745 Prototype IDs (6) 120 Alien Tech Used (0) 0 Bonus (77) 77 TOTAL SCORE: 3862 Bonus ------- High Alert Combat Kills 77 Cogmind --------- Core Integrity 0/550 Matter 198/300 Energy 250/250 System Corruption 0% Temperature Cool (9) Movement Core (700) Ox13 Location -8/Materials Parts ------- > --- POWER (1) -------- Ion Engine > --- PROPULSION (4) --- (None) > --- UTILITY (4) ------ High-capacity Storage Unit Advanced Visual Processing Unit Improved Utility Shielding Recalibrator > --- WEAPON (2) ------- Katana > --- INVENTORY (12) --- Improved Heat Sink Large Battery (300) Improved Sensor Array Light Armor Plating System Shield Peak State ------------ > --- POWER ------------ Deuterium Engine > --- PROPULSION ------- Advanced Treads Advanced Treads Advanced Treads Advanced Treads > --- UTILITY ---------- Large Storage Unit Core Shielding > --- WEAPON ----------- Improved EM Shotgun Improved EM Shotgun > --- INVENTORY -------- Deuterium Engine Improved Heat Sink Large Battery Transport Network Coupler Improved Targeting Computer Improved Utility Shielding System Shield Improved EM Shotgun Grenade Launcher Grenade Launcher [Rating: 25] Favorites ----------- Power Deuterium Engine Engine Deuterium Engine Propulsion Aluminum Leg Treads Advanced Treads Leg Aluminum Leg Wheel Wheel Utility Core Shielding Device Recalibrator Storage High-capacity Storage Unit Processor Advanced Visual Processing Unit Protection Core Shielding Weapon Improved EM Shotgun Energy Gun Improved EM Shotgun Energy Cannon Beam Cannon Ballistic Gun Autogun Launcher Rocket Launcher Slashing Weapon Katana Special Melee Weapon Improved Datajack Build | -11 -10 -9 -8 ------- Run | Scr Mat Mat Mat Slots Evolved 4 | . . 2 2 Power . | . . . . Propulsion 2 | . . 2 . Utility 2 | . . . 2 Weapon . | . . . . Parts Attached 71 | 7 9 27 28 Power 11 | 1 3 2 5 Engine 11 | 1 3 2 5 Core . | . . . . Reactor . | . . . . Propulsion 26 | 2 1 15 8 Treads 6 | . . 5 1 Leg 19 | 2 1 10 6 Wheel 1 | . . . 1 Hover . | . . . . Flight . | . . . . Utility 14 | 2 2 3 7 Device 4 | 1 . . 3 Storage 3 | 1 1 1 . Processor 2 | . . . 2 Hackware . | . . . . Protection 5 | . 1 2 2 Artifact . | . . . . Weapon 20 | 2 3 7 8 Energy Gun 10 | 2 . 4 4 Energy Cannon 2 | . 2 . . Ballistic Gun 1 | . . 1 . Ballistic Cannon . | . . . . Launcher 5 | . 1 2 2 Special Weapon . | . . . . Impact Weapon . | . . . . Slashing Weapon 1 | . . . 1 Piercing Weapon . | . . . . Special Melee Weapon 1 | . . . 1 Unidentified Prototypes 1 | . . 1 . Parts Lost 28 | . 4 4 20 Power 4 | . 1 1 2 Propulsion 11 | . 1 2 8 Utility 2 | . . . 2 Weapon 11 | . 2 1 8 Highest Loss Streak 11 | . 3 2 11 Average Slot Usage (%) 88 | . 97 90 80 Engine 10 | . 13 11 7 Treads 8 | . . 20 1 Leg 21 | . 27 15 23 Device 1 | . . . 3 Storage 11 | . 14 11 9 Processor 3 | . . . 8 Protection 12 | . 13 10 13 Energy Gun 10 | . 15 13 4 Energy Cannon 1 | . 7 . . Ballistic Gun 2 | . . 5 2 Launcher 3 | . 3 2 3 Naked Turns . | . . . . Heaviest Build 51 | 11 26 49 51 Greatest Support 88 | 20 20 88 48 Greatest Overweight (x) 14 | . 1 10 14 Average Overweight (x) . | . . . 1 Largest Inventory Capacity 12 | 6 10 12 12 Average Capacity 10 | 4 8 10 12 Most Carried 12 | 6 9 12 11 Average Carried 7 | 3 6 9 6 Final Capacity 12 | 6 10 12 12 Final Carried 11 | 4 6 11 5 Class Distribution -------------------- 94% | Mutant 5% | Scavenger-Mutant Dominant Class ---------------- Mutant | -10/Materials Mutant | -9/Materials Mutant | -8/Materials Resources | -11 -10 -9 -8 ----------- Run | Scr Mat Mat Mat Matter Collected 1232 | 179 227 433 393 Remotely . | . . . . Salvage Created 2044 | 85 312 958 689 Parts 119 | 3 30 54 32 Haulers Intercepted 6 | . 2 3 1 Recyclers Shooed . | . . . . Parts Field Recycled . | . . . . Retrieved Matter . | . . . . Parts Self-Destructed . | . . . . Prevented . | . . . . Kills | -11 -10 -9 -8 ------- Run | Scr Mat Mat Mat Combat Hostiles Destroyed 40 | . 9 16 15 Melee 1 | . . . 1 Guns 16 | . 2 9 5 Cannons 2 | . 2 . . AOE 18 | . 5 7 6 Classes Destroyed 13 | 2 5 4 2 Worker 2 | . 1 . 1 Builder 6 | . 2 4 . Tunneler 2 | 2 . . . Hauler 6 | . 2 3 1 Recycler 3 | 1 . 1 1 Mechanic 1 | . . . 1 Operator 1 | . . 1 . Watcher 3 | . . 2 1 Swarmer 5 | . 5 . . Grunt 25 | . 4 13 8 Duelist 3 | . . 1 2 Sentry 6 | . . 2 4 Hunter 1 | . . . 1 Best Kill Streak 7 | 2 6 7 5 Combat Bots Only 6 | . 4 6 3 Max Kills in Single Turn 4 | 1 2 4 2 Gunslinging 1 | . . 1 . Exploded 4 | . 2 4 1 Melee 1 | . . . 1 Uniques/NPCs Destroyed . | . . . . Combat | -11 -10 -9 -8 -------- Run | Scr Mat Mat Mat Damage Taken 3572 | . 550 898 2124 Core 761 | . 114 92 555 Absorbed by Shields . | . . . . Core Remaining (%) 77 | 100 54 77 . Volleys Fired 142 | 6 39 50 47 Largest 2 | 2 2 2 2 Hottest 115 | 90 110 90 115 Shots Fired 235 | 12 66 84 73 Gun 172 | 12 33 77 50 Cannon 23 | . 23 . . Launcher 40 | . 10 7 23 Special . | . . . . Kinetic 50 | . . 33 17 Thermal 79 | 12 56 . 11 Explosive 40 | . 10 7 23 Electromagnetic 66 | . . 44 22 Robot Hit Streak 21 | 5 6 21 10 Robot Miss Streak 4 | 1 4 3 3 Penetration Max . | . . . . Secondary Targets 2 | . . 1 1 Max Gunslinging Chain 1 | . . 1 1 Shots Hit Robots 164 | 9 36 65 54 Core Hits 105 | 4 19 46 36 Critical Hits . | . . . . Critical Kills . | . . . . Critical Parts Destroyed . | . . . . Melee Attacks 7 | . . . 7 Impact . | . . . . Slashing 7 | . . . 7 Piercing . | . . . . Sneak Attacks . | . . . . Combat Hostiles . | . . . . Follow-up Attacks . | . . . . Damage Inflicted 4571 | 107 893 1659 1912 Guns 1841 | 107 193 990 551 Cannons 191 | . 191 . . Explosions 2330 | . 509 669 1152 Melee 203 | . . . 203 Ramming 6 | . . . 6 Kinetic 493 | . . 330 163 Thermal 886 | 107 384 162 233 Explosive 2046 | . 509 507 1030 Electromagnetic 937 | . . 660 277 Impact . | . . . . Slashing 203 | . . . 203 Piercing . | . . . . Highest Corruption . | . . . . Average Corruption . | . . . . Corruption Purged . | . . . . Overload Shots . | . . . . Overflow Damage 121 | . 25 . 96 Projectiles 8 | . 8 . . Explosions 113 | . 17 . 96 Melee . | . . . . Knockbacks . | . . . . Impact . | . . . . Kinetic . | . . . . Secondary . | . . . . Self-Inflicted Damage 384 | . 106 46 232 Shots 15 | . 6 3 6 Rammed 2 | . . . 2 Targets Rammed 2 | . . . 2 Kicked . | . . . . Crushed . | . . . . Highest Temperature 451 | 150 332 451 183 Average Temperature 82 | 69 101 79 59 Received Heat Transfer 1305 | . 174 321 810 Effects 1 | . 1 . . Short Circuit 1 | . 1 . . Siege Activations . | . . . . Robots Corrupted 1 | . . . 1 Combat Hostiles 1 | . . . 1 Parts Fried 3 | . . 3 . Impact Corruptions . | . . . . Robots Melted . | . . . . Combat Hostiles . | . . . . Parts Melted 4 | 1 1 2 . Heat Transferred 1759 | 273 927 200 359 Parts Sabotaged . | . . . . Parts Stolen . | . . . . Parts Stripped . | . . . . Power Chain Reactions 5 | . . 3 2 Missiles Intercepted . | . . . . Alert | -11 -10 -9 -8 ------- Run | Scr Mat Mat Mat Peak Influence 497 | 15 171 351 497 Initial 97 | . 9 54 97 Average 198 | 6 81 136 385 Maximum Alert Level 2 | . . 1 2 Low Security (%) 63 | 100 100 82 8 Level 1 16 | . . 17 30 Level 2 20 | . . . 61 Level 3 . | . . . . Level 4 . | . . . . Level 5 . | . . . . High Security . | . . . . Max Security . | . . . . Squads Dispatched 13 | . 2 5 6 Investigation 8 | . 2 4 2 Extermination . | . . . . Reinforcement 2 | . . 1 1 Assault . | . . . . Garrison 3 | . . . 3 Intercept . | . . . . Construction Impeded 1 | . . . 1 Haulers Reinforced . | . . . . Stealth | -11 -10 -9 -8 --------- Run | Scr Mat Mat Mat Distress Signals 1 | . 1 . . Communications Jammed . | . . . . Distress Signals . | . . . . Times Spotted 52 | . 13 20 19 Peak Tracking Total 5 | . 3 5 5 Tactical Retreats 3 | . . . 3 Traps | -11 -10 -9 -8 ------- Run | Scr Mat Mat Mat Traps Triggered 6 | . 2 2 2 Indirectly . | . . . . Trap Hack Attempts . | . . . . Triggered . | . . . . Disarmed 3 | . . 3 . Reprogrammed . | . . . . Reused . | . . . . Traps Extracted . | . . . . Installed . | . . . . Triggered . | . . . . Machines | -11 -10 -9 -8 ---------- Run | Scr Mat Mat Mat Machines Disabled 10 | . 3 2 5 Max in Single Turn 1 | . 1 1 1 Machines Sabotaged . | . . . . Garrisons Compromised . | . . . . Overloaded Fab Kills . | . . . . Fab Network Shutdowns . | . . . . Hacking | -11 -10 -9 -8 --------- Run | Scr Mat Mat Mat Machines Accessed 10 | . 2 6 2 Terminals 8 | . 2 5 1 Fabricators . | . . . . Repair Stations 1 | . . . 1 Recycling Units 1 | . . 1 . Scanalyzers . | . . . . Garrison Access . | . . . . Total Hacks 33 | . 5 19 9 Successful 16 | . 2 9 5 Failed 17 | . 3 10 4 Catastrophic 2 | . . 2 . Database Lockouts . | . . . . Manual . | . . . . Terminals 24 | . 5 16 3 Fabricators . | . . . . Repair Stations 6 | . . . 6 Recycling Units 3 | . . 3 . Scanalyzers . | . . . . Garrison Access . | . . . . Terminal Hacks 9 | . 2 6 1 Robot Analysis 1 | . . 1 . Prototype ID Bank 3 | . 1 2 . Level Access Points 1 | . 1 . . Unreport Threat 1 | . . . 1 Disarm Traps 1 | . . 1 . Hauler Manifests 1 | . . 1 . Registered Components 1 | . . 1 . Fabricator Hacks . | . . . . Repair Station Hacks 4 | . . . 4 Scan Component 2 | . . . 2 Repair 2 | . . . 2 Recycling Unit Hacks 3 | . . 3 . Process 1 | . . 1 . Report Inventory 1 | . . 1 . Retrieve Matter 1 | . . 1 . Scanalyzer . | . . . . Garrison Access Hacks . | . . . . Unauthorized Hacks . | . . . . Terminals . | . . . . Fabricators . | . . . . Repair Stations . | . . . . Recycling Units . | . . . . Scanalyzers . | . . . . Garrison Access . | . . . . Data Cores Recovered . | . . . . Used . | . . . . Hacking Detections 9 | . 2 5 2 Full Trace Events 6 | . 1 4 1 Feedback Events . | . . . . Feedback Blocked . | . . . . Robot Schematics Acquired . | . . . . Robots Built . | . . . . Matter . | . . . . Time . | . . . . Total Robot Build Rating . | . . . . Part Schematics Acquired . | . . . . Parts Built . | . . . . Matter . | . . . . Time . | . . . . Total Part Build Rating . | . . . . Parts Repaired 2 | . . . 2 Time 58 | . . . 58 Parts Recycled . | . . . . Recycled Matter 83 | . . 83 . Retrieved Matter 213 | . . 213 . Retrieved Components . | . . . . Parts Scanalyzed . | . . . . Part Schematics Acquired . | . . . . Parts Damaged . | . . . . Bothacking | -11 -10 -9 -8 ------------ Run | Scr Mat Mat Mat Used RIF Installer . | . . . . Robots Hacked . | . . . . Non-combat . | . . . . Combat . | . . . . Robot Hacks Applied . | . . . . Relay Couplers Released . | . . . . Robots Rewired . | . . . . Allies Hacked . | . . . . Hacks Repelled . | . . . . Allies | -11 -10 -9 -8 -------- Run | Scr Mat Mat Mat Total Allies . | . . . . Largest Group . | . . . . Highest-Rated Group . | . . . . Highest-Rated Ally . | . . . . Total Orders . | . . . . Ally Attacks . | . . . . Total Damage . | . . . . Kills . | . . . . Allies Corrupted . | . . . . Allies Melted . | . . . . Intel | -11 -10 -9 -8 ------- Run | Scr Mat Mat Mat Robot Analysis Total 1 | . . 1 . Derelict Logs Recovered . | . . . . Drone Launches . | . . . . Drone Recoveries . | . . . . Exploration | -11 -10 -9 -8 ------------- Run | Scr Mat Mat Mat Turns Passed 2207 | 93 570 818 726 Spaces Moved 1149 | 53 328 405 363 Core 18 | 9 . 8 1 Treads 244 | . . 196 48 Legs 830 | 44 328 201 257 Wheels 57 | . . . 57 Hover . | . . . . Flight . | . . . . Fastest Speed 50 | 50 120 145 110 Average Speed 143 | 108 133 155 145 Slowest Speed 750 | 120 150 550 750 Overloaded Moves . | . . . . Propulsion Burnouts . | . . . . Robots Hopped . | . . . . Cave-ins Triggered . | . . . . Exploration Rate (%) 28 | 3 45 45 19 Regions Visited 3 Branch Regions . Pre-discovered Areas . | . . . . Known Exits Taken 1 | . 1 . . Unknown Exits Taken 2 | 1 . 1 . Scrap Searched . | . . . . Spaces Dug . | . . . . Terrain Destroyed 308 | . 44 68 196 Melee . | . . . . Projectile . | . . . . AOE 308 | . 44 68 196 Terrain Rammed . | . . . . Walls Destroyed . | . . . . Machines Disabled . | . . . . Actions | -11 -10 -9 -8 --------- Run | Scr Mat Mat Mat Total 1464 | 76 395 518 475 Wait . | . . . . Move 1146 | 52 327 404 363 Hop . | . . . . Pick Up 61 | 10 11 19 21 Fast Attach 9 | 2 1 6 . Attach 35 | 5 3 6 21 Detach 1 | . . . 1 Swap 27 | . 5 15 7 Drop 34 | 1 9 18 6 Fire 142 | 6 39 50 47 Melee 7 | . . . 7 Ram 1 | . . . 1 Kick 1 | . . . 1 Crush . | . . . . Escape Stasis . | . . . . Rewire . | . . . . Trap . | . . . . Miscellaneous . | . . . . Route ------- -11/Scrapyard -10/Materials (discovered 4 exits: *Mat x3 / [*Min]) -9/Materials (discovered 2 exits: *Mat / [*Min]) -8/Materials History --------- Turn | Location | Event 21 | -11/Scrapyard | Discovered new exit (range 15) 94 | -11/Scrapyard | Entered Materials 179 | -10/Materials | Identified exit to Materials 270 | -10/Materials | Discovered new exit (range 16) 323 | -10/Materials | Build established: Mutant 664 | -10/Materials | Entered another Materials area 664 | -9/Materials | Evolved 2 slots: Propulsion x2 673 | -9/Materials | Lost 3 parts (1p1n1w) 1058 | -9/Materials | Discovered new exit (range 9) 1455 | -9/Materials | Discovered new exit (range 15) 1482 | -9/Materials | Entered another Materials area 1482 | -8/Materials | Evolved 2 slots: Utility x2 1681 | -8/Materials | Lost 3 parts (1u2w) 1865 | -8/Materials | Repaired Imp. Aluminum Leg 1909 | -8/Materials | Repaired Core Shielding 1945 | -8/Materials | Garrison activated, responded to threat 2027 | -8/Materials | Core integrity fell below 50% 2072 | -8/Materials | Lost 11 parts (2p5n1u3w) 2105 | -8/Materials | Core integrity fell below 20% 2208 | -8/Materials | Destroyed by Y-45 Defender with Beam Rifle Last Messages --------------- Wheel destroyed. Acquired 6 matter. W-25 Informer destroyed. Acquired 38 matter. Acquired Imp. Sensor Array. U-05 Engineer lays Concrete. U-05 Engineer builds a Wall. Y-45 Defender destroyed. Acquired Lgt. Deuterium Engine. Triggered Blade Trap. Massive razor-sharp blades shoot up from within the floor. Lgt. Deuterium Engine severed. Acquired Imp. Datajack. Connecting with Terminal... >>Alert(Purge) Purged threat record, alert level lowered. ALERT: Suspicious activity at Terminal M002. Dispatching Investigation squad. Adv. Treads destroyed. Imp. Datajack destroyed. Map ----- +----------------------------------------------------+ | ????????????????????????????????????????????????? | | ????????????????????????????????????????????????? | | ????????????????????????????????????????????????? | | ????????????????????????????????????????????????? | | ????????????????????????????????????????????????? | | ????????????????????????????????????????????????? | | ????????????????????????????????????????????????? | | ????????????????????????????????????????????????? | | ????????????????????????????????????????????????? | | ????????????????????????????????????????????????? | | ????????????????????????????????????????????????? | | ????????????????????????????????????????????????? | | ????????????????????????????????????????????????? | | ???????????????????????????????????????????#????? | | ??????????????????????????????? ????????????????? | | ?????????????????????????????????????#?????????#? | | ?????????????????????????????#######????????????? | | ?????????????????????######### ##???????????? | | ?????????????????????# ## #????????????? | | ?????????????????????# "" ## #????????????? | | ?????????????????????# "T ## #????????????? | | ?????????????????????# "" ## #?????#??????# | | ?????????????????????# ## #?#??????????? | | ?????????????????????# ## #????????#???? | | ???????????##############/######+###########????? | | ???????# @ #?#??? | | ???????# Y* #????? | | ???????# ^ #????? | | ????????###+#############+######+######+####????? | | ???????????????????????? ????# # #?#??? | | ????????????"????????????????#"" # #????? | | ???????????""????????????????# " # ! ""#?#??? | | ??????????????????????????"??# = # """##??#? | | ?????????????????????????????# !=! # """#????? | | ?????????????????????????????# != # ##???? | | ??????????????????#?????????#####+##########??#?? | | ????????????????????#???########[%[ ###????? | | ??????????????????????### ###! #????#? | | ??????????????????????# # # ###?????? | | ??????????????????????# # # #??#??# | | ????????????????????#?# # # ##?????? | | ??????????????????#???# # = ! #/##+# #????#?? | | ???????????????#??????# # / # # ##??????? | | ??????????????????????## # # ##???????# | | ???????????????????##?##########%= #####???????? | | ??????????????????????##########+## ##???#??#??#? | | ????????????????????????#! ==!% # ##?#????????? | | ??????????#???????????### = = # ##??????????? | | ????????????????????????# """==% # ##??????????? | | ???????????????????"????# """" "" # #?########??? | +----------------------------------------------------+ Best States ------------- Heat Dissipation 45 Energy Generation 14 Energy Capacity 275 Matter Stores 300 Matter Capacity 300 Sight Range 20 Terrain Scan Range 20 Terrain Scan Density 10 Core Shielding 20 Utility Shielding 66 Evasion (%) 50 Targeting Accuracy 6 Recoil Reduction 4 Item Schematics ----------------- None Robot Schematics ------------------ None Fabricated ------------ Nothing Alien Tech Used ----------------- None Achievements -------------- Remodeling Troublemaker Challenges ------------ None Game ------ Seed HackingGuidedBay Manual? 0 Play Time 00:33:41 Cumulative 4.4 hours Start 2021.02.22 @ 19:18:25 End 2021.02.22 @ 20:05:01 Sessions 1 Manual Loads 0 Difficulty Rogue Special Mode None Game No. 7 Rogue 7 Adventurer 0 Explorer 0 Win Type - Total 0 Types 0/0/0/0/0/0/0/0/0 Lore% 2 Gallery% 12 Achievement% 10 Wizard Run 0 Options --------- ASCII 0 Keyboard 0 Movement Mouse Keybinds 0 Fullscreen 1 Font 24/Proggy Map View 76x50 Tactical HUD 0 Map Filters NONE Filters NONE Steam 1 RUN: 3fd84b86-cf81-476f-a4f1-7da9a051f910